[Event "January 2 Early 2024"]
[Site "https://www.chess.com"]
[Date "2024.01.02"]
[Round "5"]
[White "Przybylski, Wojciech"]
[Black "Novozhilov, Semen"]
[Result "1-0"]
[Board "64"]
[TimeControl "180+1"]
[WhiteFideId "1117599"]
[BlackFideId "24289167"]
[WhiteElo "2526"]
[BlackElo "2767"]
[WhiteTeam "POL"]
[BlackTeam "RUS"]
[WhiteClock "0:00:08"]
[BlackClock "0:00:19"]

1. e4 {[%clk 0:03:00]}  c5 {[%clk 0:02:59]} 2. Nf3 {[%clk 0:02:59]}  Nc6 {[%clk 0:03:00]} 3. Bb5 {[%clk 0:03:00]}  g6 {[%clk 0:03:00]} 4. O-O {[%clk 0:02:59]}  Bg7 {[%clk 0:03:00]} 5. Re1 {[%clk 0:03:00]}  Nf6 {[%clk 0:03:00]} 6. c3 {[%clk 0:03:00]}  O-O {[%clk 0:03:00]} 7. h3 {[%clk 0:03:00]}  e5 {[%clk 0:02:59]} 8. d3 {[%clk 0:02:58]}  d6 {[%clk 0:02:58]} 9. Bg5 {[%clk 0:02:58]}  h6 {[%clk 0:02:58]} 10. Be3 {[%clk 0:02:58]}  Be6 {[%clk 0:02:58]} 11. Nbd2 {[%clk 0:02:57]}  a6 {[%clk 0:02:56]} 12. Bxc6 {[%clk 0:02:56]}  bxc6 {[%clk 0:02:57]} 13. b3 {[%clk 0:02:56]}  Qe7 {[%clk 0:02:56]} 14. Nf1 {[%clk 0:02:54]}  Rfd8 {[%clk 0:02:56]} 15. Qc2 {[%clk 0:02:53]}  Ne8 {[%clk 0:02:52]} 16. N3d2 {[%clk 0:02:50]}  d5 {[%clk 0:02:50]} 17. f3 {[%clk 0:02:47]}  f5 {[%clk 0:02:47]} 18. f4 {[%clk 0:02:39]}  fxe4 {[%clk 0:02:45]} 19. dxe4 {[%clk 0:02:36]}  d4 {[%clk 0:02:45]} 20. Bf2 {[%clk 0:02:34]}  exf4 {[%clk 0:02:44]} 21. cxd4 {[%clk 0:02:24]}  cxd4 {[%clk 0:02:45]} 22. Qxc6 {[%clk 0:02:15]}  Rac8 {[%clk 0:02:41]} 23. Qxa6 {[%clk 0:02:11]}  d3 {[%clk 0:02:36]} 24. Rac1 {[%clk 0:02:07]}  Bc3 {[%clk 0:02:31]} 25. Red1 {[%clk 0:01:52]}  Bf7 {[%clk 0:02:22]} 26. Nc4 {[%clk 0:01:46]}  Bg7 {[%clk 0:02:08]} 27. e5 {[%clk 0:01:36]}  Nc7 {[%clk 0:02:05]} 28. Qa7 {[%clk 0:01:27]}  Nd5 {[%clk 0:01:49]} 29. Qxe7 {[%clk 0:01:24]}  Nxe7 {[%clk 0:01:50]} 30. Bb6 {[%clk 0:00:56]}  Rd5 {[%clk 0:01:46]} 31. Bf2 {[%clk 0:00:51]}  g5 {[%clk 0:01:37]} 32. Nfd2 {[%clk 0:00:49]}  Bh5 {[%clk 0:01:37]} 33. Re1 {[%clk 0:00:47]}  Be2 {[%clk 0:01:32]} 34. a4 {[%clk 0:00:41]}  Ng6 {[%clk 0:01:29]} 35. Nb6 {[%clk 0:00:31]}  Rxc1 {[%clk 0:01:15]} 36. Rxc1 {[%clk 0:00:32]}  Rxe5 {[%clk 0:01:16]} 37. Rc8+ {[%clk 0:00:29]}  Kh7 {[%clk 0:01:15]} 38. Rc7 {[%clk 0:00:28]}  h5 {[%clk 0:01:11]} 39. b4 {[%clk 0:00:21]}  Bd1 {[%clk 0:01:01]} 40. a5 {[%clk 0:00:18]}  g4 {[%clk 0:00:53]} 41. hxg4 {[%clk 0:00:15]}  hxg4 {[%clk 0:00:53]} 42. Rxg7+ {[%clk 0:00:14]}  Kh6 {[%clk 0:00:46]} 43. Nbc4 {[%clk 0:00:13]}  Re2 {[%clk 0:00:44]} 44. Rxg6+ {[%clk 0:00:12]}  Kxg6 {[%clk 0:00:43]} 45. g3 {[%clk 0:00:12]}  fxg3 {[%clk 0:00:41]} 46. Bxg3 {[%clk 0:00:12]}  Re6 {[%clk 0:00:41]} 47. b5 {[%clk 0:00:12]}  Bf3 {[%clk 0:00:41]} 48. a6 {[%clk 0:00:11]}  Re2 {[%clk 0:00:40]} 49. b6 {[%clk 0:00:11]}  Re7 {[%clk 0:00:20]} 50. Nxf3 {[%clk 0:00:09]}  gxf3 {[%clk 0:00:20]} 51. b7 {[%clk 0:00:09]}  d2 {[%clk 0:00:17]} 52. Nxd2 {[%clk 0:00:08]}  f2+ {[%clk 0:00:18]} 53. Kxf2 {[%clk 0:00:08]}  Rf7+ {[%clk 0:00:19]} 54. Nf3 {[%clk 0:00:08]}  Re7 {[%clk 0:00:19]} 55. b8=Q {[%clk 0:00:08]} 1-0

[Event "January 2 Early 2024"]
[Site "https://www.chess.com"]
[Date "2024.01.02"]
[Round "5"]
[White "Wagner, Dennis"]
[Black "Vallejo Diaz, Javier"]
[Result "1-0"]
[Board "66"]
[TimeControl "180+1"]
[WhiteFideId "24650684"]
[BlackFideId "2256398"]
[WhiteElo "2751"]
[BlackElo "2498"]
[WhiteTeam "GER"]
[BlackTeam "ESP"]
[WhiteClock "0:00:59"]
[BlackClock "0:00:17"]

1. e4 {[%clk 0:03:00]}  c5 {[%clk 0:02:58]} 2. Nf3 {[%clk 0:03:01]}  e6 {[%clk 0:02:56]} 3. c3 {[%clk 0:03:00]}  Nf6 {[%clk 0:02:55]} 4. Bd3 {[%clk 0:03:00]}  d5 {[%clk 0:02:49]} 5. e5 {[%clk 0:03:00]}  Nfd7 {[%clk 0:02:49]} 6. Bc2 {[%clk 0:03:01]}  Nc6 {[%clk 0:02:43]} 7. d4 {[%clk 0:03:01]}  b6 {[%clk 0:02:29]} 8. O-O {[%clk 0:03:00]}  g6 {[%clk 0:02:07]} 9. a3 {[%clk 0:02:54]}  a5 {[%clk 0:02:06]} 10. Bg5 {[%clk 0:02:46]}  Be7 {[%clk 0:02:06]} 11. Bxe7 {[%clk 0:02:42]}  Qxe7 {[%clk 0:02:07]} 12. Re1 {[%clk 0:02:41]}  O-O {[%clk 0:02:06]} 13. h4 {[%clk 0:02:41]}  Ba6 {[%clk 0:01:39]} 14. h5 {[%clk 0:02:35]}  Rfc8 {[%clk 0:01:39]} 15. Qd2 {[%clk 0:02:02]}  Nf8 {[%clk 0:01:37]} 16. h6 {[%clk 0:01:54]}  Rc7 {[%clk 0:01:27]} 17. Ba4 {[%clk 0:01:36]}  b5 {[%clk 0:01:14]} 18. Bd1 {[%clk 0:01:37]}  cxd4 {[%clk 0:01:13]} 19. cxd4 {[%clk 0:01:36]}  b4 {[%clk 0:01:12]} 20. Qf4 {[%clk 0:01:36]}  Bd3 {[%clk 0:01:03]} 21. Nbd2 {[%clk 0:01:34]}  Rac8 {[%clk 0:00:57]} 22. Ba4 {[%clk 0:01:33]}  Na7 {[%clk 0:00:51]} 23. axb4 {[%clk 0:01:28]}  axb4 {[%clk 0:00:51]} 24. Nh2 {[%clk 0:01:25]}  Bf5 {[%clk 0:00:44]} 25. Ndf1 {[%clk 0:01:18]}  Nc6 {[%clk 0:00:29]} 26. Bxc6 {[%clk 0:01:15]}  Rxc6 {[%clk 0:00:29]} 27. Ne3 {[%clk 0:01:15]}  Be4 {[%clk 0:00:19]} 28. Nhg4 {[%clk 0:01:10]}  Nd7 {[%clk 0:00:19]} 29. Ra7 {[%clk 0:01:08]}  R6c7 {[%clk 0:00:19]} 30. Rxc7 {[%clk 0:01:03]}  Rxc7 {[%clk 0:00:20]} 31. Ra1 {[%clk 0:01:03]}  Qd8 {[%clk 0:00:20]} 32. Nf6+ {[%clk 0:00:58]}  Nxf6 {[%clk 0:00:20]} 33. Qxf6 {[%clk 0:00:59]}  Qxf6 {[%clk 0:00:19]} 34. Ra8+ {[%clk 0:00:59]}  Rc8 {[%clk 0:00:17]} 35. Rxc8+ {[%clk 0:00:59]} 1-0

[Event "January 2 Early 2024"]
[Site "https://www.chess.com"]
[Date "2024.01.02"]
[Round "5"]
[White "Manolache, Marius"]
[Black "Filippova, Margarita"]
[Result "0-1"]
[Board "70"]
[TimeControl "180+1"]
[WhiteFideId "1201530"]
[BlackFideId "34199680"]
[WhiteElo "2694"]
[BlackElo "2320"]
[WhiteTeam "ROU"]
[BlackTeam "RUS"]
[WhiteClock "0:00:07"]
[BlackClock "0:00:14"]

1. d4 {[%clk 0:03:00]}  d5 {[%clk 0:02:55]} 2. c4 {[%clk 0:03:00]}  e6 {[%clk 0:02:49]} 3. Nc3 {[%clk 0:03:00]}  Nf6 {[%clk 0:02:46]} 4. cxd5 {[%clk 0:03:00]}  exd5 {[%clk 0:02:45]} 5. Bg5 {[%clk 0:03:00]}  Be7 {[%clk 0:02:40]} 6. e3 {[%clk 0:02:58]}  c6 {[%clk 0:01:49]} 7. Qc2 {[%clk 0:02:48]}  h6 {[%clk 0:01:48]} 8. Bh4 {[%clk 0:02:47]}  O-O {[%clk 0:01:48]} 9. Bd3 {[%clk 0:02:47]}  Re8 {[%clk 0:01:47]} 10. f3 {[%clk 0:02:46]}  Nbd7 {[%clk 0:01:35]} 11. Nge2 {[%clk 0:02:44]}  c5 {[%clk 0:01:25]} 12. O-O {[%clk 0:02:42]}  cxd4 {[%clk 0:01:25]} 13. exd4 {[%clk 0:02:40]}  Nb6 {[%clk 0:01:21]} 14. Rad1 {[%clk 0:02:29]}  a6 {[%clk 0:01:17]} 15. Kh1 {[%clk 0:02:21]}  Nh5 {[%clk 0:01:13]} 16. Bf2 {[%clk 0:02:20]}  Qd6 {[%clk 0:01:07]} 17. Rfe1 {[%clk 0:02:02]}  Bd7 {[%clk 0:01:01]} 18. Bh7+ {[%clk 0:01:55]}  Kh8 {[%clk 0:01:00]} 19. Bf5 {[%clk 0:01:54]}  Rac8 {[%clk 0:00:56]} 20. Ng3 {[%clk 0:01:50]}  Nf6 {[%clk 0:00:30]} 21. Qb3 {[%clk 0:01:39]}  Rc7 {[%clk 0:00:21]} 22. Bxd7 {[%clk 0:01:35]}  Rxd7 {[%clk 0:00:19]} 23. Nf5 {[%clk 0:01:32]}  Qc6 {[%clk 0:00:18]} 24. Rc1 {[%clk 0:01:17]}  Nc4 {[%clk 0:00:06]} 25. g4 {[%clk 0:00:59]}  b5 {[%clk 0:00:06]} 26. Qc2 {[%clk 0:00:56]}  Ng8 {[%clk 0:00:06]} 27. b3 {[%clk 0:00:42]}  Nd6 {[%clk 0:00:06]} 28. Nxd6 {[%clk 0:00:36]}  Qxd6 {[%clk 0:00:07]} 29. Qf5 {[%clk 0:00:35]}  Red8 {[%clk 0:00:07]} 30. Bg3 {[%clk 0:00:34]}  Qc6 {[%clk 0:00:05]} 31. Ne4 {[%clk 0:00:32]}  Qg6 {[%clk 0:00:04]} 32. Qxg6 {[%clk 0:00:30]}  fxg6 {[%clk 0:00:05]} 33. Nc5 {[%clk 0:00:29]}  Bxc5 {[%clk 0:00:06]} 34. dxc5 {[%clk 0:00:29]}  Nf6 {[%clk 0:00:07]} 35. c6 {[%clk 0:00:30]}  Rf7 {[%clk 0:00:05]} 36. Re6 {[%clk 0:00:23]}  Rc8 {[%clk 0:00:05]} 37. c7 {[%clk 0:00:22]}  Kh7 {[%clk 0:00:05]} 38. Rxa6 {[%clk 0:00:21]}  Rd7 {[%clk 0:00:05]} 39. Kg2 {[%clk 0:00:20]}  Ne8 {[%clk 0:00:05]} 40. Rac6 {[%clk 0:00:19]}  d4 {[%clk 0:00:06]} 41. R6c5 {[%clk 0:00:17]}  d3 {[%clk 0:00:03]} 42. Rxb5 {[%clk 0:00:17]}  d2 {[%clk 0:00:04]} 43. Rd1 {[%clk 0:00:17]}  Nxc7 {[%clk 0:00:04]} 44. Rc5 {[%clk 0:00:18]}  Nd5 {[%clk 0:00:04]} 45. Rxc8 {[%clk 0:00:17]}  Ne3+ {[%clk 0:00:04]} 46. Kh3 {[%clk 0:00:17]}  Nxd1 {[%clk 0:00:05]} 47. Bf4 {[%clk 0:00:17]}  Nf2+ {[%clk 0:00:05]} 48. Kg3 {[%clk 0:00:17]}  d1=Q {[%clk 0:00:06]} 49. Kxf2 {[%clk 0:00:17]}  Qd4+ {[%clk 0:00:06]} 50. Be3 {[%clk 0:00:16]}  Qd5 {[%clk 0:00:05]} 51. Rc2 {[%clk 0:00:15]}  Rf7 {[%clk 0:00:06]} 52. f4 {[%clk 0:00:14]}  Qe4 {[%clk 0:00:06]} 53. Rc4 {[%clk 0:00:14]}  Qd3 {[%clk 0:00:05]} 54. a4 {[%clk 0:00:13]}  Qxb3 {[%clk 0:00:05]} 55. Rd4 {[%clk 0:00:13]}  Qc2+ {[%clk 0:00:04]} 56. Kf3 {[%clk 0:00:13]}  Re7 {[%clk 0:00:04]} 57. a5 {[%clk 0:00:10]}  Qc3 {[%clk 0:00:04]} 58. Re4 {[%clk 0:00:11]}  Rxe4 {[%clk 0:00:04]} 59. Kxe4 {[%clk 0:00:11]}  Qxa5 {[%clk 0:00:05]} 60. f5 {[%clk 0:00:11]}  Qa4+ {[%clk 0:00:06]} 61. Kf3 {[%clk 0:00:10]}  gxf5 {[%clk 0:00:07]} 62. gxf5 {[%clk 0:00:11]}  Kg8 {[%clk 0:00:07]} 63. Bf4 {[%clk 0:00:10]}  Kf7 {[%clk 0:00:08]} 64. Be5 {[%clk 0:00:10]}  Qb5 {[%clk 0:00:08]} 65. Ke4 {[%clk 0:00:11]}  Qc6+ {[%clk 0:00:09]} 66. Kf4 {[%clk 0:00:11]}  Qc4+ {[%clk 0:00:09]} 67. Kf3 {[%clk 0:00:10]}  Qd5+ {[%clk 0:00:09]} 68. Kf4 {[%clk 0:00:11]}  g6 {[%clk 0:00:10]} 69. fxg6+ {[%clk 0:00:11]}  Kxg6 {[%clk 0:00:11]} 70. h4 {[%clk 0:00:12]}  Qf7+ {[%clk 0:00:10]} 71. Ke4 {[%clk 0:00:11]}  Qf5+ {[%clk 0:00:11]} 72. Kd4 {[%clk 0:00:11]}  h5 {[%clk 0:00:12]} 73. Kd5 {[%clk 0:00:11]}  Qg4 {[%clk 0:00:13]} 74. Kd6 {[%clk 0:00:09]}  Kf5 {[%clk 0:00:14]} 75. Kd5 {[%clk 0:00:07]}  Qxh4 {[%clk 0:00:14]} 0-1

[Event "January 2 Early 2024"]
[Site "https://www.chess.com"]
[Date "2024.01.02"]
[Round "5"]
[White "Buscar, Michael"]
[Black "Hansen, Sune Berg"]
[Result "0-1"]
[Board "71"]
[TimeControl "180+1"]
[WhiteFideId "2603616"]
[BlackFideId "1400266"]
[WhiteElo "2357"]
[BlackElo "2657"]
[WhiteTeam "CAN"]
[BlackTeam "DEN"]
[WhiteClock "0:00:10"]
[BlackClock "0:00:41"]

1. d4 {[%clk 0:02:59]}  Nf6 {[%clk 0:02:57]} 2. c4 {[%clk 0:02:58]}  g6 {[%clk 0:02:57]} 3. Nc3 {[%clk 0:02:56]}  Bg7 {[%clk 0:02:57]} 4. e4 {[%clk 0:02:57]}  d6 {[%clk 0:02:57]} 5. Nf3 {[%clk 0:02:57]}  Nbd7 {[%clk 0:02:55]} 6. Be2 {[%clk 0:02:53]}  e5 {[%clk 0:02:54]} 7. d5 {[%clk 0:02:50]}  Nc5 {[%clk 0:02:53]} 8. Qc2 {[%clk 0:02:48]}  a5 {[%clk 0:02:52]} 9. O-O {[%clk 0:02:45]}  O-O {[%clk 0:02:48]} 10. Ne1 {[%clk 0:02:46]}  Nfd7 {[%clk 0:02:42]} 11. Be3 {[%clk 0:02:41]}  f5 {[%clk 0:02:41]} 12. f3 {[%clk 0:02:39]}  f4 {[%clk 0:02:29]} 13. Bf2 {[%clk 0:02:32]}  g5 {[%clk 0:02:27]} 14. Nd3 {[%clk 0:02:26]}  Nxd3 {[%clk 0:02:25]} 15. Bxd3 {[%clk 0:02:24]}  h5 {[%clk 0:02:21]} 16. Qe2 {[%clk 0:02:00]}  b6 {[%clk 0:02:13]} 17. g4 {[%clk 0:01:58]}  fxg3 {[%clk 0:02:11]} 18. hxg3 {[%clk 0:01:58]}  Nc5 {[%clk 0:01:50]} 19. Bxc5 {[%clk 0:01:46]}  bxc5 {[%clk 0:01:49]} 20. Nd1 {[%clk 0:01:46]}  g4 {[%clk 0:01:39]} 21. f4 {[%clk 0:01:35]}  exf4 {[%clk 0:01:37]} 22. gxf4 {[%clk 0:01:32]}  Bd4+ {[%clk 0:01:25]} 23. Kh1 {[%clk 0:01:25]}  Bd7 {[%clk 0:01:16]} 24. f5 {[%clk 0:01:22]}  Qg5 {[%clk 0:01:12]} 25. Nf2 {[%clk 0:00:50]}  Rae8 {[%clk 0:01:05]} 26. Qc2 {[%clk 0:00:25]}  Be5 {[%clk 0:00:52]} 27. Kg2 {[%clk 0:00:23]}  Qf4 {[%clk 0:00:48]} 28. Rh1 {[%clk 0:00:19]}  Qf3+ {[%clk 0:00:46]} 29. Kf1 {[%clk 0:00:17]}  g3 {[%clk 0:00:45]} 30. Qe2 {[%clk 0:00:13]}  g2+ {[%clk 0:00:44]} 31. Kg1 {[%clk 0:00:12]}  gxh1=Q+ {[%clk 0:00:42]} 32. Nxh1 {[%clk 0:00:10]}  Bd4+ {[%clk 0:00:41]} 0-1

[Event "January 2 Early 2024"]
[Site "https://www.chess.com"]
[Date "2024.01.02"]
[Round "5"]
[White "knightmareprodigy"]
[Black "Bartel, Michal"]
[Result "0-1"]
[Board "72"]
[TimeControl "180+1"]
[BlackFideId "1119257"]
[WhiteElo "2312"]
[BlackElo "2652"]
[BlackTeam "POL"]
[WhiteClock "0:00:40"]
[BlackClock "0:01:21"]

1. e4 {[%clk 0:03:00]}  e5 {[%clk 0:02:45]} 2. Nf3 {[%clk 0:02:59]}  Nc6 {[%clk 0:02:44]} 3. Bc4 {[%clk 0:02:59]}  Nf6 {[%clk 0:02:42]} 4. d3 {[%clk 0:02:59]}  h6 {[%clk 0:02:40]} 5. O-O {[%clk 0:02:57]}  g6 {[%clk 0:02:40]} 6. Re1 {[%clk 0:02:54]}  Bg7 {[%clk 0:02:40]} 7. c3 {[%clk 0:02:54]}  O-O {[%clk 0:02:40]} 8. a4 {[%clk 0:02:55]}  d6 {[%clk 0:02:40]} 9. a5 {[%clk 0:02:54]}  a6 {[%clk 0:02:39]} 10. Nbd2 {[%clk 0:02:54]}  Re8 {[%clk 0:02:36]} 11. Bb3 {[%clk 0:02:19]}  d5 {[%clk 0:02:34]} 12. exd5 {[%clk 0:02:13]}  Nxd5 {[%clk 0:02:34]} 13. Nc4 {[%clk 0:02:10]}  Kh7 {[%clk 0:02:07]} 14. Ne3 {[%clk 0:02:08]}  Nxe3 {[%clk 0:01:53]} 15. Bxe3 {[%clk 0:02:06]}  Be6 {[%clk 0:01:50]} 16. Bxe6 {[%clk 0:02:04]}  Rxe6 {[%clk 0:01:50]} 17. Qb3 {[%clk 0:02:03]}  Rb8 {[%clk 0:01:45]} 18. h3 {[%clk 0:01:53]}  Qd7 {[%clk 0:01:40]} 19. d4 {[%clk 0:01:51]}  exd4 {[%clk 0:01:39]} 20. Nxd4 {[%clk 0:01:51]}  Nxd4 {[%clk 0:01:39]} 21. Bxd4 {[%clk 0:01:52]}  Bxd4 {[%clk 0:01:38]} 22. cxd4 {[%clk 0:01:44]}  Rxe1+ {[%clk 0:01:35]} 23. Rxe1 {[%clk 0:01:44]}  Kg7 {[%clk 0:01:36]} 24. d5 {[%clk 0:01:39]}  Qd6 {[%clk 0:01:31]} 25. Qc3+ {[%clk 0:01:38]}  Kh7 {[%clk 0:01:26]} 26. Qf3 {[%clk 0:01:25]}  Kg8 {[%clk 0:01:23]} 27. Qe4 {[%clk 0:01:15]}  Rd8 {[%clk 0:01:21]} 28. Qe7 {[%clk 0:01:13]}  Qxe7 {[%clk 0:01:20]} 29. Rxe7 {[%clk 0:01:13]}  Rxd5 {[%clk 0:01:21]} 30. Rxc7 {[%clk 0:01:14]}  Rb5 {[%clk 0:01:21]} 31. Rxb7 {[%clk 0:00:40]}  Rxb7 {[%clk 0:01:21]} 0-1

[Event "January 2 Early 2024"]
[Site "https://www.chess.com"]
[Date "2024.01.02"]
[Round "5"]
[White "Rose, Felix"]
[Black "Papasimakopoulos, Alexandros"]
[Result "0-1"]
[Board "73"]
[TimeControl "180+1"]
[WhiteFideId "5105722"]
[BlackFideId "4244125"]
[WhiteElo "2209"]
[BlackElo "2642"]
[WhiteTeam "MEX"]
[BlackTeam "GRE"]
[WhiteClock "0:00:12"]
[BlackClock "0:00:53"]

1. e4 {[%clk 0:03:00]}  e6 {[%clk 0:02:59]} 2. d4 {[%clk 0:03:00]}  d5 {[%clk 0:02:55]} 3. Nc3 {[%clk 0:03:00]}  Bb4 {[%clk 0:02:54]} 4. exd5 {[%clk 0:02:59]}  exd5 {[%clk 0:02:54]} 5. Bd3 {[%clk 0:02:59]}  Nc6 {[%clk 0:02:54]} 6. Ne2 {[%clk 0:02:59]}  Nge7 {[%clk 0:02:52]} 7. O-O {[%clk 0:02:57]}  Bf5 {[%clk 0:02:39]} 8. a3 {[%clk 0:02:38]}  Bxc3 {[%clk 0:02:37]} 9. bxc3 {[%clk 0:02:18]}  O-O {[%clk 0:02:37]} 10. Rb1 {[%clk 0:02:17]}  b6 {[%clk 0:02:34]} 11. Ng3 {[%clk 0:02:11]}  Bg6 {[%clk 0:02:31]} 12. Ba6 {[%clk 0:02:04]}  Na5 {[%clk 0:02:26]} 13. f4 {[%clk 0:01:58]}  f5 {[%clk 0:02:23]} 14. Re1 {[%clk 0:01:50]}  Nc4 {[%clk 0:02:20]} 15. Bxc4 {[%clk 0:01:48]}  dxc4 {[%clk 0:02:21]} 16. Qe2 {[%clk 0:01:47]}  Nd5 {[%clk 0:02:17]} 17. Qxc4 {[%clk 0:01:40]}  Bf7 {[%clk 0:02:09]} 18. Qd3 {[%clk 0:01:38]}  Bg6 {[%clk 0:01:46]} 19. Re5 {[%clk 0:01:33]}  Qd7 {[%clk 0:01:42]} 20. Bd2 {[%clk 0:01:31]}  Nf6 {[%clk 0:01:38]} 21. Nxf5 {[%clk 0:01:18]}  Ng4 {[%clk 0:01:33]} 22. Ne7+ {[%clk 0:00:58]}  Kh8 {[%clk 0:01:11]} 23. Nxg6+ {[%clk 0:00:58]}  hxg6 {[%clk 0:01:11]} 24. Qh3+ {[%clk 0:00:57]}  Kg8 {[%clk 0:01:09]} 25. Rg5 {[%clk 0:00:42]}  Nf6 {[%clk 0:01:05]} 26. Qxd7 {[%clk 0:00:40]}  Nxd7 {[%clk 0:01:06]} 27. Rxg6 {[%clk 0:00:41]}  Rae8 {[%clk 0:01:03]} 28. Re1 {[%clk 0:00:36]}  Nf6 {[%clk 0:01:01]} 29. Re5 {[%clk 0:00:25]}  Kf7 {[%clk 0:00:54]} 30. Reg5 {[%clk 0:00:21]}  Rg8 {[%clk 0:00:54]} 31. Re5 {[%clk 0:00:14]}  Kxg6 {[%clk 0:00:54]} 32. f5+ {[%clk 0:00:14]}  Kf7 {[%clk 0:00:53]} 33. Bg5 {[%clk 0:00:12]}  Rxe5 {[%clk 0:00:53]} 0-1

[Event "January 2 Early 2024"]
[Site "https://www.chess.com"]
[Date "2024.01.02"]
[Round "5"]
[White "Stojanovski, Sandi"]
[Black "Ilamparthi A R"]
[Result "0-1"]
[Board "75"]
[TimeControl "180+1"]
[WhiteFideId "1403249"]
[BlackFideId "45015775"]
[WhiteElo "2501"]
[BlackElo "2825"]
[WhiteTeam "DEN"]
[BlackTeam "IND"]
[WhiteClock "0:00:00"]
[BlackClock "0:00:21"]

1. d3 {[%clk 0:03:00]}  d5 {[%clk 0:02:56]} 2. Nf3 {[%clk 0:03:00]}  Nf6 {[%clk 0:02:55]} 3. g3 {[%clk 0:03:01]}  g6 {[%clk 0:02:54]} 4. Bg2 {[%clk 0:03:01]}  Bg7 {[%clk 0:02:53]} 5. O-O {[%clk 0:03:01]}  O-O {[%clk 0:02:52]} 6. c4 {[%clk 0:03:01]}  c6 {[%clk 0:02:46]} 7. cxd5 {[%clk 0:03:01]}  cxd5 {[%clk 0:02:45]} 8. Nc3 {[%clk 0:03:01]}  Nc6 {[%clk 0:02:45]} 9. Bf4 {[%clk 0:03:00]}  d4 {[%clk 0:02:12]} 10. Na4 {[%clk 0:02:52]}  Nd5 {[%clk 0:02:08]} 11. Bd2 {[%clk 0:02:30]}  b6 {[%clk 0:02:05]} 12. Qb3 {[%clk 0:02:11]}  e6 {[%clk 0:01:37]} 13. Rfc1 {[%clk 0:01:49]}  Bd7 {[%clk 0:01:34]} 14. Bg5 {[%clk 0:01:12]}  Qe8 {[%clk 0:01:18]} 15. Qd1 {[%clk 0:00:57]}  Ncb4 {[%clk 0:00:58]} 16. b3 {[%clk 0:00:56]}  Bxa4 {[%clk 0:00:57]} 17. bxa4 {[%clk 0:00:57]}  Nc3 {[%clk 0:00:57]} 18. Qe1 {[%clk 0:00:48]}  Rc8 {[%clk 0:00:55]} 19. a3 {[%clk 0:00:25]}  Nbd5 {[%clk 0:00:54]} 20. Bd2 {[%clk 0:00:13]}  Qxa4 {[%clk 0:00:53]} 21. Ng5 {[%clk 0:00:12]}  h6 {[%clk 0:00:48]} 22. Ne4 {[%clk 0:00:12]}  Nxe4 {[%clk 0:00:49]} 23. Bxe4 {[%clk 0:00:11]}  Nc3 {[%clk 0:00:49]} 24. Bxc3 {[%clk 0:00:09]}  dxc3 {[%clk 0:00:49]} 25. e3 {[%clk 0:00:10]}  Rc7 {[%clk 0:00:43]} 26. d4 {[%clk 0:00:10]}  Rfc8 {[%clk 0:00:43]} 27. Bc2 {[%clk 0:00:10]}  Qc4 {[%clk 0:00:40]} 28. a4 {[%clk 0:00:11]}  Bf8 {[%clk 0:00:39]} 29. Qf1 {[%clk 0:00:11]}  Qd5 {[%clk 0:00:36]} 30. h4 {[%clk 0:00:10]}  h5 {[%clk 0:00:36]} 31. Qd3 {[%clk 0:00:08]}  a5 {[%clk 0:00:34]} 32. Rcb1 {[%clk 0:00:08]}  Bb4 {[%clk 0:00:33]} 33. Rf1 {[%clk 0:00:08]}  Kg7 {[%clk 0:00:33]} 34. Rad1 {[%clk 0:00:08]}  Rd8 {[%clk 0:00:28]} 35. Qb5 {[%clk 0:00:07]}  Qxb5 {[%clk 0:00:25]} 36. axb5 {[%clk 0:00:07]}  Rd5 {[%clk 0:00:25]} 37. Ba4 {[%clk 0:00:06]}  e5 {[%clk 0:00:22]} 38. dxe5 {[%clk 0:00:05]}  Rxe5 {[%clk 0:00:23]} 39. Rd3 {[%clk 0:00:03]}  c2 {[%clk 0:00:21]} 40. Rc1 {[%clk 0:00:03]}  Rec5 {[%clk 0:00:21]} 41. Kf1 {[%clk 0:00:00]}  Rc4 {[%clk 0:00:21]} 0-1

[Event "January 2 Early 2024"]
[Site "https://www.chess.com"]
[Date "2024.01.02"]
[Round "5"]
[White "Ladan, Nicholas"]
[Black "Dragun, Kamil"]
[Result "0-1"]
[Board "76"]
[TimeControl "180+1"]
[WhiteFideId "30918855"]
[BlackFideId "1134167"]
[WhiteElo "2497"]
[BlackElo "2778"]
[WhiteTeam "USA"]
[BlackTeam "POL"]
[WhiteClock "0:00:00"]
[BlackClock "0:00:45"]

1. d4 {[%clk 0:03:00]}  d5 {[%clk 0:02:59]} 2. Nf3 {[%clk 0:02:57]}  Nf6 {[%clk 0:02:58]} 3. g3 {[%clk 0:02:55]}  Bf5 {[%clk 0:02:54]} 4. Bg2 {[%clk 0:02:56]}  e6 {[%clk 0:02:54]} 5. O-O {[%clk 0:02:56]}  Be7 {[%clk 0:02:51]} 6. c4 {[%clk 0:02:56]}  c6 {[%clk 0:02:50]} 7. Qb3 {[%clk 0:02:52]}  Qb6 {[%clk 0:02:50]} 8. Nc3 {[%clk 0:02:52]}  O-O {[%clk 0:02:35]} 9. c5 {[%clk 0:02:50]}  Qxb3 {[%clk 0:02:28]} 10. axb3 {[%clk 0:02:51]}  Nbd7 {[%clk 0:02:22]} 11. b4 {[%clk 0:02:51]}  a6 {[%clk 0:02:20]} 12. Nh4 {[%clk 0:02:47]}  Bc2 {[%clk 0:02:20]} 13. Bd2 {[%clk 0:02:33]}  h6 {[%clk 0:02:18]} 14. h3 {[%clk 0:02:28]}  e5 {[%clk 0:02:16]} 15. Rfc1 {[%clk 0:02:02]}  Bh7 {[%clk 0:02:10]} 16. dxe5 {[%clk 0:01:58]}  Nxe5 {[%clk 0:02:10]} 17. Nf3 {[%clk 0:01:49]}  Nc4 {[%clk 0:02:09]} 18. b3 {[%clk 0:01:42]}  Nxd2 {[%clk 0:02:07]} 19. Nxd2 {[%clk 0:01:43]}  d4 {[%clk 0:02:06]} 20. Na4 {[%clk 0:01:39]}  Rad8 {[%clk 0:02:03]} 21. Nb6 {[%clk 0:01:35]}  Rfe8 {[%clk 0:02:01]} 22. Nbc4 {[%clk 0:01:34]}  Nd5 {[%clk 0:01:58]} 23. Na5 {[%clk 0:01:29]}  Nxb4 {[%clk 0:01:42]} 24. Nxb7 {[%clk 0:01:29]}  Rb8 {[%clk 0:01:43]} 25. Nd6 {[%clk 0:01:29]}  Bxd6 {[%clk 0:01:41]} 26. cxd6 {[%clk 0:01:30]}  Rxe2 {[%clk 0:01:40]} 27. Nc4 {[%clk 0:00:43]}  Bc2 {[%clk 0:01:39]} 28. Bf3 {[%clk 0:00:36]}  Re6 {[%clk 0:01:36]} 29. Bg4 {[%clk 0:00:30]}  Ree8 {[%clk 0:01:13]} 30. d7 {[%clk 0:00:27]}  Red8 {[%clk 0:01:13]} 31. Re1 {[%clk 0:00:23]}  f5 {[%clk 0:01:11]} 32. Re7 {[%clk 0:00:16]}  fxg4 {[%clk 0:01:08]} 33. Rae1 {[%clk 0:00:16]}  Nd5 {[%clk 0:00:59]} 34. Re8+ {[%clk 0:00:07]}  Kh7 {[%clk 0:01:00]} 35. hxg4 {[%clk 0:00:02]}  d3 {[%clk 0:00:57]} 36. R1e5 {[%clk 0:00:01]}  Nf6 {[%clk 0:00:48]} 37. R8e7 {[%clk 0:00:01]}  Rxd7 {[%clk 0:00:47]} 38. g5 {[%clk 0:00:01]}  Rxe7 {[%clk 0:00:44]} 39. Rxe7 {[%clk 0:00:00]}  hxg5 {[%clk 0:00:45]} 0-1